Cogmind - Beta 12 @@@ ROGUE MODE // 2023.10.27 @ 19:22:10 Player: FrostySpirit Result: Destroyed by S-27 Virus via exploding Fusion Modulator Performance ------------- Evolutions (4) 2000 Regions Visited (6) 1200 Robots Destroyed (13) 65 Value Destroyed (377) 377 Prototype IDs (2) 40 Alien Tech Used (0) 0 Bonus (0) 0 TOTAL SCORE: 3682 Bonus ------- None Cogmind --------- Core Integrity 0/850 Matter 124/300 Energy 100/100 System Corruption 0% Temperature Cool (12) Movement Core (50) Location -6/Factory Parts ------- > --- POWER (2) -------- (None) > --- PROPULSION (4) --- (None) > --- UTILITY (7) ------ Improved Signal Interpreter Improved Terrain Scan Processor > --- WEAPON (2) ------- (None) > --- INVENTORY (5) ---- Matter Compressor (0) Advanced Sensor Array Advanced ECM Suite Hacking Suite Peak State ------------ > --- POWER ------------ Ion Engine Light Deuterium Engine > --- PROPULSION ------- Armored Huge Wheel > --- UTILITY ---------- Improved Signal Interpreter Improved Terrain Scanner Improved Terrain Scan Processor Hacking Suite System Shield > --- WEAPON ----------- Gauss Rifle Advanced Assault Cannon > --- INVENTORY -------- Advanced ECM Suite Advanced ECM Suite Advanced ECM Suite [Rating: 36] Favorites ----------- Power Light Ion Engine Engine Light Ion Engine Propulsion VTOL Module Leg Aluminum Leg Wheel Armored Huge Wheel Hover Unit Improved Hover Unit Flight Unit VTOL Module Utility Small Storage Unit Device Sensor Array Storage Small Storage Unit Processor Improved Terrain Scan Processor Hackware System Shield Weapon Autogun Energy Gun Small Laser Ballistic Gun Autogun Ballistic Cannon Advanced Assault Cannon Slashing Weapon Greatsword Build | -11 -10 -9 -9 -8 -7 -6 ------- Run | Jun Mat Mat Min Mat Fac Fac Slots Evolved 8 | . . 2 . 2 2 2 Power 1 | . . . . 1 . . Propulsion 2 | . . 2 . . . . Utility 5 | . . . . 1 2 2 Weapon . | . . . . . . . Parts Attached 47 | 7 3 9 1 10 13 4 Power 9 | 2 . 1 . 2 3 1 Engine 9 | 2 . 1 . 2 3 1 Core . | . . . . . . . Reactor . | . . . . . . . Propulsion 11 | 2 . 4 . 4 1 . Treads . | . . . . . . . Leg 2 | 2 . . . . . . Wheel 1 | . . . . . 1 . Hover 4 | . . . . 4 . . Flight 4 | . . 4 . . . . Utility 16 | 1 3 . 1 2 6 3 Device 11 | . 3 . 1 1 3 3 Storage 1 | 1 . . . . . . Processor 2 | . . . . 1 1 . Hackware 2 | . . . . . 2 . Protection . | . . . . . . . Artifact . | . . . . . . . Weapon 11 | 2 . 4 . 2 3 . Energy Gun 3 | 1 . 2 . . . . Energy Cannon . | . . . . . . . Ballistic Gun 6 | 1 . 2 . 1 2 . Ballistic Cannon 1 | . . . . . 1 . Launcher . | . . . . . . . Special Weapon . | . . . . . . . Impact Weapon . | . . . . . . . Slashing Weapon 1 | . . . . 1 . . Piercing Weapon . | . . . . . . . Special Melee Weapon . | . . . . . . . Unidentified Prototypes 2 | . . 1 . . 1 . Parts Lost 22 | . 3 . . 8 6 5 Power 5 | . 1 . . 2 1 1 Propulsion 5 | . . . . 4 1 . Utility 8 | . . . . 2 2 4 Weapon 4 | . 2 . . . 2 . Highest Loss Streak 8 | . 3 . . 8 6 5 To Critical Strikes . | . . . . . . . Average Slot Usage (%) 71 | . 90 93 100 80 59 36 Engine 8 | . 11 11 11 11 5 3 Leg 5 | . 28 . . . . . Wheel 1 | . . . . . 5 . Hover 3 | . . . . 11 . . Flight 9 | . . 44 44 21 . . Device 11 | . 11 11 11 17 6 14 Storage 6 | . 14 11 11 8 . . Processor 6 | . . . . . 15 13 Hackware 5 | . . . . . 14 4 Energy Gun 2 | . 12 1 . . . . Ballistic Gun 8 | . 12 14 22 5 9 . Naked Turns . | . . . . . . . Heaviest Build 21 | 13 14 15 16 19 21 15 Greatest Support 28 | 20 20 16 16 28 28 3 Greatest Overweight (x) 4 | 1 . . . 1 . 4 Average Overweight (x) . | . . . . . . . Largest Inventory Capacity 8 | 8 8 8 8 8 5 5 Average Capacity 6 | 7 8 8 8 7 5 5 Most Carried 8 | 1 8 8 8 8 5 4 Average Carried 4 | . 6 6 8 7 2 1 Final Capacity 8 | 8 8 8 8 5 5 5 Final Carried 8 | 1 8 8 8 5 4 4 Class Distribution -------------------- 44% | Mutant 29% | Hacker-Mutant 20% | Sprinter 5% | Infiltrator-Mutant Dominant Class ---------------- Mutant | -10/Materials Sprinter | -9/Materials Sprinter | -9/Mines Sprinter | -8/Materials Hacker-Mutant | -7/Factory Mutant | -6/Factory Resources | -11 -10 -9 -9 -8 -7 -6 ----------- Run | Jun Mat Mat Min Mat Fac Fac Matter Collected 509 | 216 129 60 . 104 . . Remotely . | . . . . . . . Salvage Created 457 | . 216 60 . 162 19 . Parts 28 | . 12 1 . 13 2 . Haulers Intercepted . | . . . . . . . Recyclers Shooed . | . . . . . . . Parts Field Recycled . | . . . . . . . Retrieved Matter . | . . . . . . . Parts Self-Destructed . | . . . . . . . Prevented . | . . . . . . . Kills | -11 -10 -9 -9 -8 -7 -6 ------- Run | Jun Mat Mat Min Mat Fac Fac Combat Hostiles Destroyed 11 | . 6 1 . 3 1 . Melee 3 | . . . . 3 . . Guns 7 | . 6 1 . . . . Cannons 1 | . . . . . 1 . Classes Destroyed 5 | . 3 1 . 1 . . Builder 1 | . . . . 1 . . Watcher 1 | . 1 . . . . . Swarmer 4 | . 3 . . . 1 . Grunt 5 | . 3 . . 2 . . Sentry 2 | . . 1 . 1 . . Best Kill Streak 3 | . 3 1 . 3 1 . Combat Bots Only 3 | . 3 1 . 3 1 . Max Kills in Single Turn 1 | . 1 1 . 1 1 . Gunslinging . | . . . . . . . Exploded . | . . . . . . . Melee 1 | . . . . 1 . . Uniques/NPCs Destroyed . | . . . . . . . Combat | -11 -10 -9 -9 -8 -7 -6 -------- Run | Jun Mat Mat Min Mat Fac Fac Damage Taken 3512 | . 465 67 26 569 1400 985 Core 1813 | . 104 15 . 188 646 860 Absorbed by Shields . | . . . . . . . Core Remaining (%) 65 | 100 58 . 96 65 7 . Volleys Fired 32 | . 20 5 . 2 5 . Largest 2 | . 2 2 . 2 1 . Hottest 60 | . 60 46 . 46 48 . Shots Fired 59 | . 40 10 . 4 5 . Gun 54 | . 40 10 . 4 . . Cannon 5 | . . . . . 5 . Launcher . | . . . . . . . Special . | . . . . . . . Kinetic 39 | . 20 10 . 4 5 . Thermal 20 | . 20 . . . . . Explosive . | . . . . . . . Electromagnetic . | . . . . . . . Robot Hit Streak 6 | . 5 6 . 1 . . Robot Miss Streak 5 | . 3 1 . 1 5 . Penetration Max . | . . . . . . . Secondary Targets 3 | . 3 . . . . . Max Gunslinging Chain 1 | . 1 . . . . . Shots Hit Robots 39 | . 25 6 . 8 . . Core Hits 23 | . 12 2 . 6 2 1 Critical Kills . | . . . . . . . Critical Parts Destroyed . | . . . . . . . Critical Strikes 1 | . . . . 1 . . Sever 1 | . . . . 1 . . Melee Attacks 9 | . . . . 9 . . Impact . | . . . . . . . Slashing 9 | . . . . 9 . . Piercing . | . . . . . . . Sneak Attacks 1 | . . . . 1 . . Combat Hostiles 1 | . . . . 1 . . Follow-up Attacks . | . . . . . . . Damage Inflicted 824 | . 309 85 . 355 49 26 Guns 423 | . 308 85 . 30 . . Cannons 31 | . . . . . 31 . Explosions . | . . . . . . . Melee 322 | . . . . 322 . . Ramming 48 | . 1 . . 3 18 26 Kinetic 290 | . 144 85 . 30 31 . Thermal 164 | . 164 . . . . . Explosive . | . . . . . . . Electromagnetic . | . . . . . . . Impact . | . . . . . . . Slashing 322 | . . . . 322 . . Piercing . | . . . . . . . Highest Corruption 3 | . . 3 3 . . . Average Corruption 3 | . . 3 3 . . . Corruption Purged . | . . . . . . . Corruption Blocked . | . . . . . . . Effects 2 | . . 2 . . . . Matter Fused 2 | . . 2 . . . . Overload Shots . | . . . . . . . Overflow Damage 14 | . . . . 14 . . Projectiles . | . . . . . . . Explosions . | . . . . . . . Melee 14 | . . . . 14 . . Knockbacks . | . . . . . . . Impact . | . . . . . . . Kinetic . | . . . . . . . Secondary . | . . . . . . . Self-Inflicted Damage 20 | . . . . 1 9 10 Shots . | . . . . . . . Rammed 11 | . . . . 2 1 8 Targets Rammed 12 | . 1 . . 2 1 8 Kicked 1 | . 1 . . . . . Crushed . | . . . . . . . Highest Temperature 81 | . 81 29 8 7 14 . Average Temperature 33 | . 43 13 5 3 9 . Received Heat Transfer 735 | . 219 9 15 198 165 129 Siege Activations . | . . . . . . . Robots Corrupted . | . . . . . . . Combat Hostiles . | . . . . . . . Parts Fried . | . . . . . . . Impact Corruptions . | . . . . . . . Robots Melted . | . . . . . . . Combat Hostiles . | . . . . . . . Parts Melted . | . . . . . . . Heat Transferred 375 | . 375 . . . . . Parts Sabotaged . | . . . . . . . Parts Stolen . | . . . . . . . Parts Stripped . | . . . . . . . Power Chain Reactions . | . . . . . . . Missiles Intercepted . | . . . . . . . Alert | -11 -10 -9 -9 -8 -7 -6 ------- Run | Jun Mat Mat Min Mat Fac Fac Peak Influence 328 | . 213 328 127 119 51 35 Initial 127 | . . 81 127 49 6 14 Average 55 | . 119 124 127 67 14 13 Maximum Alert Level 1 | . 1 1 . . . . Low Security (%) 98 | 100 94 89 100 100 100 100 Level 1 1 | . 5 10 . . . . Level 2 . | . . . . . . . Level 3 . | . . . . . . . Level 4 . | . . . . . . . Level 5 . | . . . . . . . High Security . | . . . . . . . Max Security . | . . . . . . . Squads Dispatched 6 | . . 1 . 4 1 . Investigation 2 | . . . . 2 . . Extermination . | . . . . . . . Reinforcement 3 | . . 1 . 1 1 . Assault . | . . . . . . . Garrison 1 | . . . . 1 . . Intercept . | . . . . . . . Searches Triggered . | . . . . . . . Construction Impeded . | . . . . . . . Haulers Reinforced . | . . . . . . . Active Scanning Responses . | . . . . . . . Cargo Convoy Interrupts . | . . . . . . . Stealth | -11 -10 -9 -9 -8 -7 -6 --------- Run | Jun Mat Mat Min Mat Fac Fac Distress Signals 1 | . 1 . . . . . Communications Jammed . | . . . . . . . Distress Signals . | . . . . . . . Times Spotted 67 | . 12 11 3 18 16 7 Peak Tracking Total 12 | . 4 12 3 8 8 4 Tactical Retreats 11 | . 2 1 . 3 4 1 Traps | -11 -10 -9 -9 -8 -7 -6 ------- Run | Jun Mat Mat Min Mat Fac Fac Traps Triggered . | . . . . . . . Indirectly . | . . . . . . . Trap Hack Attempts . | . . . . . . . Triggered . | . . . . . . . Disarmed 6 | . . . . 6 . . Reprogrammed . | . . . . . . . Reused . | . . . . . . . Traps Extracted . | . . . . . . . Installed . | . . . . . . . Triggered . | . . . . . . . Machines | -11 -10 -9 -9 -8 -7 -6 ---------- Run | Jun Mat Mat Min Mat Fac Fac Machines Disabled . | . . . . . . . Max in Single Turn . | . . . . . . . Machines Repaired . | . . . . . . . Machines Sabotaged . | . . . . . . . Overloaded Fab Kills . | . . . . . . . Hacking | -11 -10 -9 -9 -8 -7 -6 --------- Run | Jun Mat Mat Min Mat Fac Fac Machines Accessed 8 | . . 2 . 5 1 . Terminals 7 | . . 2 . 4 1 . Fabricators . | . . . . . . . Repair Stations . | . . . . . . . Recycling Units 1 | . . . . 1 . . Scanalyzers . | . . . . . . . Garrison Access . | . . . . . . . Total Hacks 22 | . . 4 . 16 2 . Successful 12 | . . 2 . 10 . . Failed 10 | . . 2 . 6 2 . Catastrophic 2 | . . 1 . . 1 . Database Lockouts . | . . . . . . . Manual . | . . . . . . . Terminals 20 | . . 4 . 14 2 . Fabricators . | . . . . . . . Repair Stations . | . . . . . . . Recycling Units 2 | . . . . 2 . . Scanalyzers . | . . . . . . . Garrison Access . | . . . . . . . Terminal Hacks 11 | . . 2 . 9 . . Record 3 | . . . . 3 . . Branch Access Points 1 | . . 1 . . . . Alert Level 1 | . . . . 1 . . Unreport Threat 2 | . . . . 2 . . Locate Traps 1 | . . 1 . . . . Disarm Traps 1 | . . . . 1 . . Dispatch Records 1 | . . . . 1 . . Transport Status 1 | . . . . 1 . . Fabricator Hacks . | . . . . . . . Repair Station Hacks . | . . . . . . . Recycling Unit Hacks 1 | . . . . 1 . . Retrieve Matter 1 | . . . . 1 . . Scanalyzer . | . . . . . . . Garrison Access Hacks . | . . . . . . . Unauthorized Hacks . | . . . . . . . Terminals . | . . . . . . . Fabricators . | . . . . . . . Repair Stations . | . . . . . . . Recycling Units . | . . . . . . . Scanalyzers . | . . . . . . . Garrison Access . | . . . . . . . Data Cores Recovered . | . . . . . . . Used . | . . . . . . . Hacking Detections 7 | . . 1 . 5 1 . Full Trace Events 3 | . . 1 . 2 . . Feedback Events . | . . . . . . . Feedback Blocked . | . . . . . . . Robot Schematics Acquired . | . . . . . . . Robots Built . | . . . . . . . Authchips . | . . . . . . . Time . | . . . . . . . Total Robot Build Rating . | . . . . . . . Part Schematics Acquired . | . . . . . . . Parts Built . | . . . . . . . Authchips . | . . . . . . . Time . | . . . . . . . Total Part Build Rating . | . . . . . . . Parts Repaired . | . . . . . . . Time . | . . . . . . . Parts Recycled . | . . . . . . . Recycled Matter . | . . . . . . . Retrieved Matter . | . . . . . . . Retrieved Components . | . . . . . . . Parts Scanalyzed . | . . . . . . . Part Schematics Acquired . | . . . . . . . Parts Damaged . | . . . . . . . Bothacking | -11 -10 -9 -9 -8 -7 -6 ------------ Run | Jun Mat Mat Min Mat Fac Fac Used RIF Installer . | . . . . . . . Robots Hacked . | . . . . . . . Non-combat . | . . . . . . . Combat . | . . . . . . . Robot Hacks Applied . | . . . . . . . Relay Couplers Released . | . . . . . . . Fabnet Peak Effective % . | . . . . . . . Robots Rewired . | . . . . . . . Allies Hacked . | . . . . . . . Hacks Repelled . | . . . . . . . Allies | -11 -10 -9 -9 -8 -7 -6 -------- Run | Jun Mat Mat Min Mat Fac Fac Total Allies . | . . . . . . . Largest Group . | . . . . . . . Highest-Rated Group . | . . . . . . . Highest-Rated Ally . | . . . . . . . Total Orders . | . . . . . . . Ally Attacks . | . . . . . . . Total Damage . | . . . . . . . Kills . | . . . . . . . Allies Corrupted . | . . . . . . . Allies Melted . | . . . . . . . Intel | -11 -10 -9 -9 -8 -7 -6 ------- Run | Jun Mat Mat Min Mat Fac Fac Robot Analysis Total . | . . . . . . . Derelict Logs Recovered . | . . . . . . . Drone Launches . | . . . . . . . Drone Recoveries . | . . . . . . . Exploration | -11 -10 -9 -9 -8 -7 -6 ------------- Run | Jun Mat Mat Min Mat Fac Fac Turns Passed 1324 | 65 244 96 13 345 411 150 Spaces Moved 1327 | 49 139 203 43 462 286 145 Core 319 | 7 . . . 18 149 145 Treads . | . . . . . . . Legs 181 | 42 139 . . . . . Wheels 137 | . . . . . 137 . Hover 183 | . . . . 183 . . Flight 507 | . . 203 43 261 . . Fastest Speed 26 | 50 120 26 26 26 50 50 Average Speed 60 | 112 120 27 26 37 73 90 Slowest Speed 250 | 120 120 29 26 106 100 250 Overloaded Moves . | . . . . . . . Propulsion Burnouts . | . . . . . . . Robots Hopped . | . . . . . . . Cave-ins Triggered . | . . . . . . . Exploration Rate (%) 18 | 5 28 29 23 34 9 4 Regions Visited 6 Branch Regions 1 Pre-discovered Areas . | . . . . . . . Known Exits Taken 2 | . . 1 . . 1 . Unknown Exits Taken 4 | 1 1 . 1 1 . . Scrap Searched . | . . . . . . . Spaces Dug . | . . . . . . . Terrain Destroyed . | . . . . . . . Melee . | . . . . . . . Projectile . | . . . . . . . AOE . | . . . . . . . Terrain Rammed . | . . . . . . . Walls Destroyed . | . . . . . . . Machines Disabled . | . . . . . . . Actions | -11 -10 -9 -9 -8 -7 -6 --------- Run | Jun Mat Mat Min Mat Fac Fac Total 1762 | 55 175 236 43 613 479 161 Wait 289 | . 4 7 . 112 166 . Move 1321 | 48 138 202 42 461 285 145 Hop . | . . . . . . . Pick Up 27 | . 7 7 . 5 5 3 Fast Attach 20 | 6 2 4 . 3 5 . Attach 21 | . . 5 . 4 8 4 Detach 6 | . . . . 3 2 1 Swap 6 | 1 1 . 1 3 . . Drop 19 | . 2 6 . 9 2 . Fire 32 | . 20 5 . 2 5 . Melee 9 | . . . . 9 . . Ram 11 | . . . . 2 1 8 Kick 1 | . 1 . . . . . Crush . | . . . . . . . Escape Stasis . | . . . . . . . Rewire . | . . . . . . . Trap . | . . . . . . . Miscellaneous . | . . . . . . . Route ------- -11/Junkyard -10/Materials -9/Materials (discovered 2 exits: *Min x2) -9/Mines -8/Materials -7/Factory -6/Factory History --------- Turn | Location | Event 25 | -11/Junkyard | Discovered new exit (range 14) 66 | -11/Junkyard | Entered Materials 291 | -10/Materials | Discovered new exit (range 16) 302 | -10/Materials | Build established: Mutant 310 | -10/Materials | Entered another Materials area 310 | -9/Materials | Evolved 2 slots: Propulsion x2 315 | -9/Materials | Lost 3 parts (1p2w) 390 | -9/Materials | Identified exit to Mines 406 | -9/Materials | Entered Mines 416 | -9/Mines | Discovered new exit (range 12) 419 | -9/Mines | Entered Materials 419 | -8/Materials | Evolved 2 slots: Power x1, Utility x1 708 | -8/Materials | Garrison activated, responded to threat 757 | -8/Materials | Discovered new exit (range 16) 764 | -8/Materials | Entered Factory 764 | -7/Factory | Evolved 2 slots: Utility x2 787 | -7/Factory | Lost 8 parts (2p4n2u) 1038 | -7/Factory | Build established: Hacker-Mutant 1139 | -7/Factory | Core integrity fell below 50% 1154 | -7/Factory | Core integrity fell below 20% 1168 | -7/Factory | Discovered new exit (range 15) 1172 | -7/Factory | Lost 6 parts (1p1n2u2w) 1175 | -7/Factory | Identified exit to Factory 1175 | -7/Factory | Entered another Factory area 1175 | -6/Factory | Evolved 2 slots: Utility x2 1298 | -6/Factory | Core integrity fell below 50% 1319 | -6/Factory | Spotted B-75 Beast 1324 | -6/Factory | Core integrity fell below 20% 1325 | -6/Factory | Destroyed by S-27 Virus via exploding Fusion Modulator Last Messages --------------- PARAMETERS=UTILITY+2 LOCATION=FACTORY GOAL=ESCAPE 01219_ Acquired Matter Compressor. 01225_ Adv. ECM Suite destroyed. 01249_ Slammed into G-50 Soldier. 01252_ Transmission Jammer destroyed. 01252_ ALERT: All DSF locations entering lockdown mode. 01253_ Slammed into G-50 Soldier. 01255_ Lgt. Deuterium Engine destroyed. 01282_ ALERT: Security rotation in progress. 01282_ Slammed into S-27 Virus. 01283_ Adv. ECM Suite destroyed. 01294_ Acquired Adv. Sensor Array. 01297_ System Shield destroyed. 01316_ Acquired Hacking Suite. 01321_ Slammed into S-27 Virus. 01323_ Destabilizing: Core damaged (-42). 01324_ Slammed into S-27 Virus. 01325_ Fusion Modulator explodes. Map ----- +----------------------------------------------------+ | ?????????????????????????????????????????????????? | | ?????????????????????????????????????????????????? | | ?????????????????????????????????????????????????? | | ?????????????????????????????????????????????????? | | ?????????????????????????????????????????????????? | | ?????????????????????????????????????????????????? | | ?????????????????????????????????????????????????? | | ?????????????????????????????????????????????????? | | ?????????????????????????????????????????????????? | | ?????????????????#???????????????????????????????? | | ?????????????????# ??????????????????????????????? | | ?????????????????# ????????????????? #???????????? | | ?????????????????# ??????????????? #???????????? | | ?????????????????# ???????????? #???????????? | | ?????????????????# ???????????? #???????????? | | ?????????????????# ??????????? #???????????? | | ???????????##+#### ?????????? #???????????? | | ??????????? ????????? #???????????? | | ??????????# ????????? #???????????? | | ??????????# ######### #???????????? | | ??????????# ############? | | ????????? s # | | ????????? ** " # | | ??????????# * """ s""" "G" # | | ??????????? """ """ " " # | | ?????????????? """ @""" # | | ????????????? s # | | ??????????# """ """ [ """ # | | ????????????????" """ """ # | | ???????????????"" """ """ # | | ?????????????? !! + | | ?????????????? ! # | | ???????????????##### T########## #? ? | | ???????????????????###?????????# ####+####"### | | ???????????????????????????????# | | ???????????????????????????????# | | ???????????????????????????????# | | ???????????????????????????????# | | ???????????????????????????????# | | ???????????????????????????????# ############# | | ???????????????????????????????# #???????????? | | ???????????????????????????????# ############# | | ???????????????????????????????# # | | ???????????????????????????????# # """ """ | | ???????????????????????????????# # """ """ | | ????????????????????????####???# # """ """ | | ???????????????????????? ??# # "" "" | | ????????????????????????? ?# # "" "" | | ????????????????????????? ?# # | | ?????????????????????????? # # | +----------------------------------------------------+ Best States ------------- Heat Dissipation 37 Energy Generation 19 Energy Capacity 290 Matter Stores 300 Matter Capacity 300 Sight Range 16 Robot Scan Range 14 Terrain Scan Range 16 Terrain Scan Density 110 ECM Strength 2 Jamming Range 12 Evasion (%) 64 Offensive Hacking 10 Defensive Hacking 10 Item Schematics ----------------- None Robot Schematics ------------------ None Fabricated ------------ Nothing Alien Tech Used ----------------- None Achievements -------------- Omniscient Cartographer Challenges ------------ None Game ------ Seed ArmoredAutogunCanceller Manual? 0 Play Time 00:27:19 Cumulative 18.2 hours Start 2023.10.27 @ 18:55:50 End 2023.10.27 @ 19:22:10 Sessions 1 Manual Loads 0 Difficulty Rogue Special Mode None Game No. 30 Rogue 30 Adventurer 0 Explorer 0 Win Type - Total 0 Types 0/0/0/0/0/0/0/0/0 Lore% 18 Gallery% 28 Achievement% 21 Wizard Run 0 Options --------- ASCII 0 Keyboard 0 Movement Mouse Keybinds 0 Fullscreen 1 Font 18/TerminusBold Map View 76x50 Tactical HUD 1 Map Filters NONE Filters NONE Steam 1 RUN: ec8d7614-d0e7-4bcc-a7d2-c14ee93ef4d8